{"text_format":"3","workbook":"xlsx","n_sheets":1,"sheets":["Presupuesto para días festivos"],"not_rendered":{"defined_names":1},"read":"whole","date_system":"1900"}

{"sheet":"Presupuesto para días festivos","index":0,"n_rows":37,"n_cols":12,"rows_kept":37,"merged":[[1,1,7,4],[9,1,9,4],[9,8,9,11],[19,1,19,4],[19,8,19,11],[30,1,30,4],[30,8,30,11]]}
[]
[null,"Presupuesto para días festivos Planificador"]
[]
[{"$nulls":8},"PRESUPUESTO PARA EL DÍA FESTIVO",null,{"$f":"SUM(Regalos[Presupuesto],Empaquetado[Presupuesto],(Viajes[Presupuesto],(Comidas[Presupuesto],(Entretenimiento[Presupuesto],Varios[Presupuesto]))))","v":{"v":750,"d":"750.00 €"}}]
[{"$nulls":8},"GASTOS REALES",null,{"$f":"SUM((Regalos[Real],(Empaquetado[Real],(Viajes[Real],(Comidas[Real],(Entretenimiento[Real],(Varios[Real])))))))","v":{"v":820,"d":"820.00 €"}}]
[]
[{"$nulls":8},"DIFERENCIA (por encima o por debajo del presupuesto)",null,{"$f":"SUM(K4-K5)","v":{"v":-70,"d":"-70.00 €"}}]
[]
[]
[null,"Regalos",{"$nulls":6},"Comidas festivas"]
[null,"Elemento","Presupuesto","Real","Diferencia",{"$nulls":3},"Elemento","Presupuesto","Real","Diferencia"]
[null,"Familia",{"v":500,"d":"500.00 €"},{"v":495,"d":"495.00 €"},{"$f":"Regalos[[#This Row],[Presupuesto]]-Regalos[[#This Row],[Real]]","v":{"v":5,"d":"5.00 €"}},{"$nulls":3},"Alimentos",null,null,{"$f":"Comidas[[#This Row],[Presupuesto]]-Comidas[[#This Row],[Real]]","v":{"v":0,"d":"0.00 €"}}]
[null,"Amigos",{"v":250,"d":"250.00 €"},{"v":325,"d":"325.00 €"},{"$f":"Regalos[[#This Row],[Presupuesto]]-Regalos[[#This Row],[Real]]","v":{"v":-75,"d":"-75.00 €"}},{"$nulls":3},"Bebidas",null,null,{"$f":"Comidas[[#This Row],[Presupuesto]]-Comidas[[#This Row],[Real]]","v":{"v":0,"d":"0.00 €"}}]
[null,"Compañeros de trabajo",null,null,{"$f":"Regalos[[#This Row],[Presupuesto]]-Regalos[[#This Row],[Real]]","v":{"v":0,"d":"0.00 €"}},{"$nulls":3},"Decoraciones",null,null,{"$f":"Comidas[[#This Row],[Presupuesto]]-Comidas[[#This Row],[Real]]","v":{"v":0,"d":"0.00 €"}}]
[null,"Profesores, niñeras, etc.",null,null,{"$f":"Regalos[[#This Row],[Presupuesto]]-Regalos[[#This Row],[Real]]","v":{"v":0,"d":"0.00 €"}},{"$nulls":3},"Otros (presione la tecla Tab en la última columna de esta fila para agregar una fila nueva)",null,null,{"$f":"Comidas[[#This Row],[Presupuesto]]-Comidas[[#This Row],[Real]]","v":{"v":0,"d":"0.00 €"}}]
[null,"Donaciones benéficas",null,null,{"$f":"Regalos[[#This Row],[Presupuesto]]-Regalos[[#This Row],[Real]]","v":{"v":0,"d":"0.00 €"}},{"$nulls":3},"Total",{"$f":"SUBTOTAL(109,Comidas[Presupuesto])","v":{"v":0,"d":"0.00 €"}},{"$f":"SUBTOTAL(109,Comidas[Real])","v":{"v":0,"d":"0.00 €"}},{"$f":"SUBTOTAL(109,Comidas[Diferencia])","v":{"v":0,"d":"0.00 €"}}]
[null,"Otros (presione la tecla Tab en la última columna de esta fila para agregar una fila nueva)",null,null,{"$f":"Regalos[[#This Row],[Presupuesto]]-Regalos[[#This Row],[Real]]","v":{"v":0,"d":"0.00 €"}}]
[null,"Total",{"$f":"SUBTOTAL(109,Regalos[Presupuesto])","v":{"v":750,"d":"750.00 €"}},{"$f":"SUBTOTAL(109,Regalos[Real])","v":{"v":820,"d":"820.00 €"}},{"$f":"SUBTOTAL(109,Regalos[Diferencia])","v":{"v":-70,"d":"-70.00 €"}}]
[]
[null,"Empaquetado",{"$nulls":6},"Entretenimiento"]
[null,"Elemento","Presupuesto","Real","Diferencia",{"$nulls":3},"Elemento","Presupuesto","Real","Diferencia"]
[null,"Papel de envolver",null,null,{"$f":"Empaquetado[[#This Row],[Presupuesto]]-Empaquetado[[#This Row],[Real]]","v":{"v":0,"d":"0.00 €"}},{"$nulls":3},"Ayuda para la fiesta (camareros, catering, limpiadores, etc.)",null,null,{"$f":"Entretenimiento[[#This Row],[Presupuesto]]-Entretenimiento[[#This Row],[Real]]","v":{"v":0,"d":"0.00 €"}}]
[null,"Etiquetas",null,null,{"$f":"Empaquetado[[#This Row],[Presupuesto]]-Empaquetado[[#This Row],[Real]]","v":{"v":0,"d":"0.00 €"}},{"$nulls":3},"Decoraciones",null,null,{"$f":"Entretenimiento[[#This Row],[Presupuesto]]-Entretenimiento[[#This Row],[Real]]","v":{"v":0,"d":"0.00 €"}}]
[null,"Material (lazos, cinta adhesiva, etc.)",null,null,{"$f":"Empaquetado[[#This Row],[Presupuesto]]-Empaquetado[[#This Row],[Real]]","v":{"v":0,"d":"0.00 €"}},{"$nulls":3},"Comida y bebidas",null,null,{"$f":"Entretenimiento[[#This Row],[Presupuesto]]-Entretenimiento[[#This Row],[Real]]","v":{"v":0,"d":"0.00 €"}}]
[null,"Cajas",null,null,{"$f":"Empaquetado[[#This Row],[Presupuesto]]-Empaquetado[[#This Row],[Real]]","v":{"v":0,"d":"0.00 €"}},{"$nulls":3},"Ropa",null,null,{"$f":"Entretenimiento[[#This Row],[Presupuesto]]-Entretenimiento[[#This Row],[Real]]","v":{"v":0,"d":"0.00 €"}}]
[null,"Gastos de envío",null,null,{"$f":"Empaquetado[[#This Row],[Presupuesto]]-Empaquetado[[#This Row],[Real]]","v":{"v":0,"d":"0.00 €"}},{"$nulls":3},"Entradas",null,null,{"$f":"Entretenimiento[[#This Row],[Presupuesto]]-Entretenimiento[[#This Row],[Real]]","v":{"v":0,"d":"0.00 €"}}]
[null,"Otros (presione la tecla Tab en la última columna de esta fila para agregar una fila nueva)",null,null,{"$f":"Empaquetado[[#This Row],[Presupuesto]]-Empaquetado[[#This Row],[Real]]","v":{"v":0,"d":"0.00 €"}},{"$nulls":3},"Comidas fuera de casa",null,null,{"$f":"Entretenimiento[[#This Row],[Presupuesto]]-Entretenimiento[[#This Row],[Real]]","v":{"v":0,"d":"0.00 €"}}]
[null,"Total",{"$f":"SUBTOTAL(109,Empaquetado[Presupuesto])","v":{"v":0,"d":"0.00 €"}},{"$f":"SUBTOTAL(109,Empaquetado[Real])","v":{"v":0,"d":"0.00 €"}},{"$f":"SUBTOTAL(109,Empaquetado[Diferencia])","v":{"v":0,"d":"0.00 €"}},{"$nulls":3},"Otros (presione la tecla Tab en la última columna de esta fila para agregar una fila nueva)",null,null,{"$f":"Entretenimiento[[#This Row],[Presupuesto]]-Entretenimiento[[#This Row],[Real]]","v":{"v":0,"d":"0.00 €"}}]
[{"$nulls":8},"Total",{"$f":"SUBTOTAL(109,Entretenimiento[Presupuesto])","v":{"v":0,"d":"0.00 €"}},{"$f":"SUBTOTAL(109,Entretenimiento[Real])","v":{"v":0,"d":"0.00 €"}},{"$f":"SUBTOTAL(109,Entretenimiento[Diferencia])","v":{"v":0,"d":"0.00 €"}}]
[]
[null,"Viaje",{"$nulls":6},"Varios"]
[null,"Elemento","Presupuesto","Real","Diferencia",{"$nulls":3},"Elemento","Presupuesto","Real","Diferencia"]
[null,"Tarifa aérea",null,null,{"$f":"Viajes[[#This Row],[Presupuesto]]-Viajes[[#This Row],[Real]]","v":{"v":0,"d":"0.00 €"}},{"$nulls":3},"Fotos del día festivo",null,null,{"$f":"Varios[[#This Row],[Presupuesto]]-Varios[[#This Row],[Real]]","v":{"v":0,"d":"0.00 €"}}]
[null,"Alojamiento",null,null,{"$f":"Viajes[[#This Row],[Presupuesto]]-Viajes[[#This Row],[Real]]","v":{"v":0,"d":"0.00 €"}},{"$nulls":3},"Combustible ",null,null,{"$f":"Varios[[#This Row],[Presupuesto]]-Varios[[#This Row],[Real]]","v":{"v":0,"d":"0.00 €"}}]
[null,"Transporte",null,null,{"$f":"Viajes[[#This Row],[Presupuesto]]-Viajes[[#This Row],[Real]]","v":{"v":0,"d":"0.00 €"}},{"$nulls":3},"Otros (presione la tecla Tab en la última columna de esta fila para agregar una fila nueva)",null,null,{"$f":"Varios[[#This Row],[Presupuesto]]-Varios[[#This Row],[Real]]","v":{"v":0,"d":"0.00 €"}}]
[null,"Otros (presione la tecla Tab en la última columna de esta fila para agregar una fila nueva)",null,null,{"$f":"Viajes[[#This Row],[Presupuesto]]-Viajes[[#This Row],[Real]]","v":{"v":0,"d":"0.00 €"}},{"$nulls":3},"Total",{"$f":"SUBTOTAL(109,Varios[Presupuesto])","v":{"v":0,"d":"0.00 €"}},{"$f":"SUBTOTAL(109,Varios[Real])","v":{"v":0,"d":"0.00 €"}},{"$f":"SUBTOTAL(109,Varios[Diferencia])","v":{"v":0,"d":"0.00 €"}}]
[null,"Total",{"$f":"SUBTOTAL(109,Viajes[Presupuesto])","v":{"v":0,"d":"0.00 €"}},{"$f":"SUBTOTAL(109,Viajes[Real])","v":{"v":0,"d":"0.00 €"}},{"$f":"SUBTOTAL(109,Viajes[Diferencia])","v":{"v":0,"d":"0.00 €"}}]